bitfinex/quotes_SOLUSD_20250722
["timestamp","ask_amount","ask_price","bid_price","bid_amount"]
[1753148162591,18.78060073,200.81,200.75,18.11060073]
[1753148162791,4.9783581,200.87,200.71,23.09291351]
[1753148162792,18.11060073,200.77,200.71,23.09291351]
[1753148162993,17.4242186,200.87,200.66,4.98355427]
[1753148162994,0.67,200.76,200.66,4.98355427]
[1753148163170,18.11060073,200.79,200.73,18.11060073]
[1753148163496,18.11060073,200.84,200.78,18.11060073]
[1753148163695,17.45468397,200.83,200.73,18.11060073]
[1753148163892,0.67,200.82,200.74,18.11060073]
[1753148164087,0.67,200.82,200.77,18.11060073]
[1753148164296,0.67,200.86,200.79,18.11060073]
[1753148164499,0.67,200.86,200.81,18.11060073]
[1753148164798,0.67,200.91,200.85,18.11060073]
[1753148165001,0.67,200.91,200.83,26.0]
[1753148165002,18.11060073,200.92,200.83,26.0]
[1753148165199,2.67,200.95,200.86,18.11060073]
[1753148165415,2.0,200.95,200.87,40.54]
[1753148165620,2.0,200.95,200.94,18.11060073]
[1753148165903,11.8857,201.0,200.97,26.0]
[1753148166095,11.8857,201.0,200.98,0.67]
[1753148166274,11.8857,201.0,200.94,76.06873549]
[1753148166275,11.8857,201.0,200.94,17.41813476]
[1753148166476,11.8857,201.0,200.95,0.67]
[1753148166701,0.67,201.14,201.02,26.0]
[1753148166881,4.97190913,201.13,201.02,44.78060073]
[1753148167077,18.78060073,201.14,201.02,18.78060073]
[1753148167377,0.67,201.18,201.05,26.0]
[1753148167583,12.42112585,201.27,201.15,18.11060073]
[1753148167904,12.42112585,201.27,200.99,16.78468397]
[1753148167905,0.68,201.28,201.16,4.97116723]
[1753148168194,0.68,201.34,201.19,26.0]
[1753148168403,0.68,201.34,201.2,0.72]
[1753148168573,0.68,201.43,201.31,18.11060073]
[1753148168777,5.64472383,201.43,201.31,18.83060073]
[1753148168978,4.96443935,201.44,201.31,18.83060073]
[1753148169178,1.80660838,201.32,201.31,18.83060073]
[1753148169380,1.80660838,201.32,201.31,59.35060073]
[1753148169588,1.80660838,201.32,201.31,41.24]
[1753148169782,1e-08,201.32,201.31,64.31806384]
[1753148169985,1e-08,201.32,201.24,12.42266451]
[1753148170183,0.68,201.31,201.2,4.97017892]
[1753148170397,18.11060073,201.3,201.2,4.97017892]
[1753148170589,0.68,201.31,201.27,18.11060073]
[1753148170798,0.68,201.3,201.27,18.11060073]
[1753148170996,16.78468397,201.28,201.1,4.97265042]
[1753148171183,16.78468397,201.26,201.14,18.11060073]
[1753148171384,0.68,201.25,201.16,18.11060073]
[1753148171581,16.78468397,201.24,201.1,4.97265042]
[1753148171782,18.11060073,201.12,200.99,4.9753719]
[1753148172095,18.11060073,201.04,200.97,18.11060073]
[1753148172297,0.68,201.03,200.91,40.48]
[1753148172497,16.78468397,201.02,200.79,6.4568]
[1753148172803,0.68,201.01,200.93,18.11060073]
[1753148173007,18.11060073,200.98,200.8,4.98007968]
[1753148173209,18.11060073,200.93,200.86,18.11060073]
[1753148173385,0.68,200.93,200.85,18.11060073]
[1753148173702,0.68,200.98,200.93,4.97685761]
[1753148173904,0.68,201.03,200.97,18.11060073]
[1753148174089,0.68,201.08,201.02,18.11060073]
[1753148174283,0.68,201.08,200.96,18.11060073]
[1753148174481,18.79060073,201.08,201.01,18.11060073]
[1753148174680,18.11060073,201.07,200.96,26.0]
[1753148174895,0.68,201.13,201.06,18.11060073]
[1753148175097,18.11060073,201.07,201.0,18.11060073]
[1753148175411,18.11060073,201.01,200.77,45.8]
[1753148175603,0.68,201.0,200.81,4.97983168]
[1753148175788,4.97770615,200.9,200.81,18.11060073]
[1753148175988,16.78468397,200.95,200.83,18.11060073]
[1753148175989,0.68,200.89,200.83,18.11060073]
[1753148176198,18.11060073,200.9,200.83,18.11060073]
[1753148176412,18.11060073,200.86,200.79,18.11060073]
[1753148176707,18.11060073,200.84,200.73,45.46181637]
[1753148176913,18.11060073,200.82,200.73,45.46181637]
[1753148177214,18.11060073,200.81,200.72,4.9819698]
[1753148177515,4.97769811,200.9,200.8,18.11060073]
[1753148177725,0.68,200.96,200.75,17.43462016]
[1753148177889,0.68,200.96,200.89,18.11060073]
[1753148178087,0.68,200.96,200.88,26.0]
[1753148178290,0.68,200.96,200.93,18.11060073]
[1753148178485,0.68,200.96,200.81,16.78468397]
[1753148178486,0.68,201.02,200.95,18.11060073]
[1753148178708,0.68,201.02,200.99,18.11060073]
[1753148178910,0.68,201.02,200.94,44.11060073]
[1753148178911,18.11060073,201.01,200.94,44.11060073]
[1753148179127,0.68,201.02,200.81,16.3694]
[1753148179328,18.11060073,200.99,200.92,18.11060073]
[1753148179509,18.11060073,200.94,200.87,18.11060073]
[1753148179830,10.0,201.06,200.93,44.11060073]
[1753148179831,0.68,201.02,200.93,44.11060073]
[1753148180036,0.68,201.06,201.0,18.11060073]
[1753148180334,18.79060073,201.06,200.99,18.11060073]
[1753148180638,0.68,201.06,201.01,18.11060073]
[1753148180804,18.11060073,201.02,200.91,4.97716047]
[1753148181006,18.11060073,200.99,200.92,44.11060073]
[1753148181197,0.68,201.06,200.98,44.11060073]
[1753148181404,0.68,201.06,200.89,5.00764481]
[1753148181405,18.79060073,201.06,200.89,17.45226624]
[1753148181701,18.11060073,201.04,200.98,26.0]
[1753148181913,0.68,201.05,200.99,18.11060073]
[1753148182112,18.11060073,201.06,200.89,0.03]
[1753148182338,0.68,201.05,201.02,18.11060073]
[1753148182829,0.68,201.05,201.01,18.11060073]
[1753148183041,18.79060073,201.05,200.9,17.42160278]
[1753148183198,0.68,201.05,200.97,26.0]
[1753148183399,0.68,201.05,200.99,18.11060073]
[1753148183810,4.9741345,201.04,200.99,18.11060073]
[1753148184006,0.68,201.03,200.98,18.11060073]
[1753148184225,18.11060073,201.0,200.9,4.97738302]
[1753148184418,0.68,201.01,200.99,18.11060073]
[1753148184628,0.68,201.05,201.0,18.11060073]
[1753148185004,0.68,201.11,201.04,18.11060073]
[1753148185198,0.68,201.11,201.02,26.0]
[1753148185199,0.68,201.11,201.07,18.11060073]
[1753148185430,0.68,201.11,201.05,26.0]
[1753148185431,0.68,201.11,201.08,18.11060073]
[1753148185604,18.79060073,201.12,201.05,18.11060073]
[1753148185804,4.97289712,201.1,201.02,18.11060073]
[1753148186029,4.97289712,201.1,200.92,36.07855454]
[1753148186030,16.78468397,201.08,200.92,26.07855454]
[1753148186200,18.11060073,201.04,200.92,19.43065454]
[1753148186406,0.68,201.04,201.01,18.11060073]
[1753148186623,18.11060073,201.06,200.99,18.11060073]
[1753148186804,0.68,201.03,200.99,18.11060073]
[1753148187005,0.68,201.08,201.02,18.11060073]
[1753148187219,0.68,201.08,201.04,18.11060073]
[1753148187419,18.11060073,201.1,201.03,18.11060073]
[1753148187620,0.68,201.12,201.05,18.11060073]
[1753148187826,0.68,201.18,201.08,18.11060073]
[1753148188133,18.11060073,201.16,201.09,26.0]
[1753148188336,0.68,201.21,201.13,18.11060073]
[1753148188522,0.68,201.21,201.18,26.0]
[1753148188718,18.11060073,201.23,201.07,17.40687322]
[1753148188956,4.96855526,201.27,201.11,18.11060073]
[1753148188957,18.11060073,201.18,201.11,18.11060073]
[1753148189230,18.11060073,201.15,201.08,18.11060073]
[1753148189408,0.68,201.17,201.08,18.11060073]
[1753148189409,0.68,201.17,201.12,18.11060073]
[1753148189612,18.11060073,201.15,201.08,18.11060073]
[1753148189832,18.11060073,201.13,201.06,18.11060073]
[1753148190022,18.11060073,201.1,201.03,18.11060073]
[1753148190211,18.11060073,201.11,201.04,18.11060073]
[1753148190526,4.97175597,201.14,201.01,4.97487687]
[1753148190527,18.11060073,201.07,201.01,4.97487687]
[1753148190728,17.00510073,201.08,201.01,23.0854776]
[1753148191041,17.00510073,201.08,201.02,18.11060073]
[1753148191042,0.68,201.06,201.02,18.11060073]
[1753148191212,0.68,201.05,200.99,4.97515805]
[1753148191741,18.11060073,201.03,200.96,18.11060073]
[1753148192039,0.68,201.03,201.01,18.11060073]
[1753148192209,0.68,201.02,200.98,18.11060073]
[1753148192408,18.11060073,201.05,200.98,18.11060073]
[1753148192644,18.11060073,200.99,200.93,18.11060073]
[1753148193308,16.78468397,201.04,200.99,0.03]
[1753148193505,16.78468397,200.99,200.89,0.03]
[1753148193710,18.11060073,200.93,200.89,0.03]
[1753148193929,18.11060073,200.92,200.89,0.03]
[1753148194126,0.68,200.92,200.89,0.03]
[1753148194333,0.68,200.98,200.89,0.03]
[1753148194542,18.11060073,200.92,200.89,0.03]
[1753148194743,18.11060073,200.93,200.89,0.03]
[1753148194910,0.68,200.97,200.92,18.11060073]
[1753148195235,16.78468397,201.01,200.9,44.11060073]
[1753148195419,18.11060073,201.04,200.97,18.11060073]
[1753148195731,18.11060073,201.0,200.93,18.11060073]
[1753148195935,18.11060073,200.94,200.89,0.03]
[1753148196138,18.11060073,200.9,200.89,0.03]
[1753148196850,16.78468397,200.98,200.89,18.14060073]
[1753148197014,0.68,200.97,200.89,5.00781874]
[1753148197348,16.78468397,200.97,200.91,18.11060073]
[1753148197538,18.79060073,200.98,200.92,18.11060073]
[1753148197728,0.68,200.98,200.95,18.11060073]
[1753148197926,18.11060073,201.02,200.96,18.11060073]
[1753148198128,16.78468397,201.01,200.93,18.11060073]
[1753148198324,18.11060073,201.02,200.95,18.11060073]
[1753148198523,0.67,201.03,200.98,18.11060073]
[1753148198747,18.78060073,201.08,201.01,18.11060073]
[1753148198938,41.29,201.13,201.05,18.11060073]
[1753148199144,18.11060073,201.09,201.02,18.11060073]
[1753148199440,16.78468397,201.11,201.03,26.0]
[1753148199646,18.11060073,201.09,201.03,26.0]
[1753148199821,18.11060073,201.07,201.0,18.11060073]
[1753148200020,18.11060073,201.06,200.99,44.11060073]
[1753148200521,0.67,201.08,201.02,18.11060073]
[1753148200737,18.11060073,201.06,201.0,18.11060073]
[1753148201118,16.78468397,201.09,200.96,18.11060073]
[1753148201119,18.11060073,201.03,200.96,18.11060073]
[1753148201320,18.11060073,201.01,200.94,18.11060073]
[1753148201519,0.67,201.06,200.98,18.11060073]
[1753148201736,18.11060073,201.02,200.94,4.97655021]
[1753148201945,18.11060073,201.01,200.94,23.08715094]
[1753148202344,18.11060073,201.0,200.9,4.97760079]
[1753148202526,18.11060073,201.0,200.94,18.11060073]
[1753148203049,18.11060073,201.0,200.93,26.0]
[1753148203050,18.11060073,200.99,200.89,0.03]
[1753148203233,18.11060073,200.94,200.89,0.03]
[1753148203622,18.11060073,200.91,200.89,0.03]
[1753148203825,46.8289,201.0,200.89,0.03]
[1753148204026,16.78468397,200.94,200.89,0.03]
[1753148204246,18.11060073,200.95,200.89,18.14060073]
[1753148204441,4.9753719,200.99,200.89,18.14060073]
[1753148204442,22.43005587,200.99,200.93,0.03]
[1753148204620,18.11060073,200.97,200.93,0.03]
[1753148204944,16.78468397,201.02,200.94,18.11060073]
[1753148205146,21.75921397,201.03,200.95,18.11060073]
[1753148205332,16.78468397,201.01,200.93,0.03]
[1753148205532,16.78468397,201.01,200.95,18.11060073]
[1753148206053,0.67,201.01,200.96,18.11060073]
[1753148206244,40.56,201.04,200.96,0.69]
[1753148206431,40.56,201.04,200.99,18.11060073]
[1753148206626,18.11060073,201.03,200.93,0.03]
[1753148206937,0.67,201.03,200.99,4.615259]
[1753148207329,40.56,201.04,201.01,18.11060073]
[1753148207628,4.97241517,201.11,200.99,4.615259]
[1753148207629,16.78468397,201.08,200.99,4.615259]
[1753148207828,40.52,201.12,201.04,23.0845699]
[1753148208130,18.11060073,201.1,201.03,18.11060073]
[1753148208535,34.8952847,201.1,201.04,18.11060073]
[1753148208749,14.42718397,201.1,201.04,18.11060073]
[1753148208944,14.42718397,201.1,201.05,18.11060073]
[1753148209141,14.42718397,201.1,201.03,23.08492478]
[1753148209328,58.63060073,201.12,201.05,18.11060073]
[1753148209528,6.0916,201.16,201.09,18.11060073]
[1753148209752,0.06,201.16,201.05,26.0]
[1753148210046,0.06,201.16,201.07,4.97328942]
[1753148210248,18.11060073,201.13,201.07,4.97328942]
[1753148210554,0.73,201.16,201.09,18.11060073]
[1753148210758,16.78468397,201.15,201.09,18.11060073]
[1753148210938,0.73,201.16,201.09,18.11060073]
[1753148211124,0.73,201.16,201.07,4.97328942]
[1753148211329,0.06,201.16,201.14,18.11060073]
[1753148211538,0.06,201.16,201.15,18.11060073]
[1753148211942,0.06,201.16,201.15,23.77201509]
[1753148212801,0.06,201.16,201.14,26.0]
[1753148212945,0.06,201.16,201.1,31.66265042]
[1753148213258,0.06,201.16,201.1,30.97265042]
[1753148213426,18.11060073,201.13,201.02,13.12627199]
[1753148213627,0.67,201.12,201.05,18.11060073]
[1753148213949,18.11060073,201.13,201.07,23.08399308]
[1753148214146,18.11060073,201.13,201.07,18.11060073]
[1753148214334,18.11060073,201.13,201.02,0.69]
[1753148214335,23.08257923,201.13,201.06,18.11060073]
[1753148214670,18.11060073,201.08,201.04,0.03]
[1753148214835,18.11060073,201.07,201.04,0.03]
[1753148215162,18.11060073,201.1,201.04,0.03]
[1753148215461,0.67,201.12,201.05,18.11060073]
[1753148215753,18.11060073,201.06,201.04,0.03]
[1753148215936,18.78060073,201.05,201.04,0.03]
[1753148216352,18.11060073,201.06,201.04,0.03]
[1753148216733,18.11060073,201.08,201.04,0.03]
[1753148216960,0.67,201.09,201.04,0.03]
[1753148217168,18.11060073,201.08,201.04,0.03]
[1753148217333,0.67,201.07,201.04,0.03]
[1753148217538,18.11060073,201.06,201.04,0.03]
[1753148217966,18.11060073,201.07,201.04,0.03]
[1753148218334,40.48,201.09,201.04,0.03]
[1753148218534,58.59060073,201.09,201.04,0.03]
[1753148218872,59.26060073,201.09,201.04,0.03]
[1753148219047,18.11060073,201.08,201.04,0.03]
[1753148219353,18.78060073,201.08,201.04,0.03]
[1753148219558,0.67,201.08,201.04,0.03]
[1753148219947,40.48,201.09,201.04,0.03]
[1753148220157,40.48,201.09,201.04,18.14060073]
[1753148220336,18.11060073,201.14,201.08,18.11060073]
[1753148220658,41.19,201.16,201.06,18.11060073]
[1753148220957,18.11060073,201.14,201.08,18.11060073]
[1753148221156,18.11060073,201.14,201.04,0.03]
[1753148221157,0.06,201.16,201.13,18.11060073]
[1753148221458,0.06,201.16,201.05,0.69]
[1753148221459,18.11060073,201.15,201.05,0.69]
[1753148221762,16.78468397,201.13,201.04,0.03]
[1753148221976,18.11060073,201.11,201.05,26.0]
[1753148222267,16.84468397,201.16,201.04,0.03]
[1753148222268,18.11060073,201.06,201.04,0.03]
[1753148222466,18.11060073,201.05,201.04,0.03]
[1753148222648,0.67,201.06,201.04,0.03]
[1753148222852,18.78060073,201.06,201.04,0.03]
[1753148223156,0.06,201.16,201.05,18.80060073]
[1753148223356,0.06,201.16,201.13,18.11060073]
[1753148223657,1e-08,201.16,201.15,18.11060073]
[1753148223847,1e-08,201.16,201.15,18.80060073]
[1753148224037,0.67000001,201.32,201.15,18.80060073]
[1753148224245,0.67000001,201.32,201.14,26.0]
[1753148224246,18.11060074,201.32,201.26,18.11060073]
[1753148224446,18.11060073,201.31,201.24,18.11060073]
[1753148224643,18.11060073,201.31,201.25,18.11060073]
[1753148224843,18.11060073,201.29,201.23,4.96943795]
[1753148225158,1e-08,201.32,201.26,18.11060073]
[1753148225337,18.11060074,201.32,201.26,18.11060073]
[1753148225534,17.45468397,201.31,201.23,49.08003868]
[1753148225761,0.67,201.31,201.26,18.11060073]
[1753148225960,18.11060073,201.27,201.21,4.9697949]
[1753148226271,18.11060073,201.25,201.2,4.97017892]
[1753148226458,18.11060073,201.23,201.18,4.97046964]
[1753148226762,16.78468397,201.18,201.09,18.11060073]
[1753148226967,18.11060073,201.13,201.06,18.11060073]
[1753148227133,18.78060073,201.17,201.1,18.11060073]
[1753148227538,0.67,201.17,201.12,18.11060073]
[1753148227738,16.78468397,201.19,201.13,18.11060073]
[1753148227934,40.44,201.23,201.17,18.11060073]
[1753148228158,40.44,201.23,201.16,18.11060073]
[1753148228159,16.78468397,201.22,201.16,18.11060073]
[1753148228358,0.65,201.28,201.21,18.11060073]
[1753148228575,18.76060073,201.28,201.22,18.11060073]
[1753148228860,40.44000001,201.32,201.27,18.11060073]
[1753148229049,1e-08,201.32,201.23,26.0]
[1753148229240,1e-08,201.32,201.3,18.11060073]
[1753148229664,1e-08,201.32,201.29,18.11060073]
[1753148230046,1e-08,201.32,201.28,18.11060073]
[1753148230246,1e-08,201.32,201.29,4.96795667]
[1753148230562,18.11060074,201.32,201.27,4.96820559]
[1753148230748,18.76060073,201.31,201.25,23.07941153]
[1753148230947,18.11060073,201.29,201.24,4.96917068]
[1753148231347,18.11060073,201.29,201.21,38.42476941]
[1753148231348,0.65,201.29,201.22,23.08005118]
[1753148231664,18.11060073,201.31,201.24,18.11060073]
[1753148231858,18.11060073,201.25,201.18,18.11060073]
[1753148232169,18.11060073,201.25,201.19,18.11060073]
[1753148232461,40.44,201.3,201.24,18.11060073]
[1753148232675,1e-08,201.32,201.27,18.11060073]
[1753148232841,1e-08,201.32,201.29,18.11060073]
[1753148233164,1e-08,201.32,201.31,18.11060073]
[1753148233340,1e-08,201.32,201.27,26.0]
[1753148233538,1e-08,201.32,201.31,18.11060073]
[1753148233739,10.0,201.54,201.31,18.11060073]
[1753148234052,241.5191449,201.6,201.24,58.55060073]
[1753148234053,18.11060073,201.48,201.42,18.11060073]
[1753148234255,18.76060073,201.49,201.43,4.96450379]
[1753148234646,0.65,201.49,201.42,18.11060073]
[1753148234848,18.11060073,201.47,201.4,18.11060073]
[1753148235061,18.11060073,201.46,201.39,23.07609057]
[1753148235291,0.65,201.49,201.42,18.11060073]
[1753148235563,3.994,201.5,201.44,18.11060073]
[1753148236063,19.26060073,201.45,201.37,18.11060073]
[1753148236362,0.5,201.45,201.42,18.11060073]
[1753148236541,0.5,201.45,201.43,18.11060073]
[1753148236739,0.56,201.45,201.44,18.11060073]
[1753148238055,1e-08,201.45,201.44,44.81060073]
[1753148238252,3.994,201.5,201.46,26.0]
[1753148238451,2.594,201.5,201.49,18.11060073]
[1753148238760,2.594,201.5,201.47,4.96351814]
[1753148238761,0.1,201.53,201.52,26.0]
[1753148239063,0.1,201.53,201.52,18.11060073]
[1753148239260,0.1,201.53,201.5,26.0]
[1753148239471,0.1,201.53,201.52,18.11060073]
[1753148239844,0.1,201.53,201.39,17.37921445]
[1753148240162,0.65,201.52,201.39,17.37921445]
[1753148240343,0.1,201.53,201.49,18.11060073]
[1753148240546,0.1,201.53,201.52,18.11060073]
[1753148241452,0.75,201.53,201.46,18.11060073]
[1753148241652,0.1,201.53,201.52,18.11060073]
[1753148241947,0.1,201.53,201.42,26.0]
[1753148242150,0.1,201.53,201.44,26.0]
[1753148242359,0.1,201.53,201.48,18.11060073]
[1753148242564,0.1,201.53,201.48,44.11060073]
[1753148242756,0.1,201.53,201.42,4.96451931]
[1753148243066,18.11060073,201.49,201.42,4.96451931]
[1753148243251,12.82826135,201.48,201.41,12.82826135]
[1753148243446,12.82826135,201.48,201.38,12.82826135]
[1753148243447,12.82826135,201.45,201.38,12.82826135]
[1753148243651,13.47826135,201.44,201.38,12.82826135]
[1753148243846,12.82826135,201.42,201.32,4.609069]
[1753148244155,0.65,201.44,201.38,12.82826135]
[1753148244358,12.82826135,201.47,201.41,4.96499677]
[1753148244573,12.82826135,201.47,201.37,4.96598301]
[1753148244748,22.39796867,201.48,201.4,12.82826135]
[1753148244949,13.47826135,201.48,201.41,12.82826135]
[1753148245150,40.48,201.53,201.45,18.61362863]
[1753148245354,0.1,201.53,201.5,18.61362863]
[1753148245646,0.1,201.53,201.51,18.61362863]
[1753148245849,0.1,201.53,201.52,18.61362863]
[1753148246266,0.1,201.53,201.49,44.61362863]
[1753148246451,0.1,201.53,201.49,23.57658923]
[1753148246656,0.65,201.52,201.48,49.57680717]
[1753148246854,18.61362863,201.52,201.45,18.61362863]
[1753148247065,0.65,201.51,201.39,12.41327419]
[1753148247262,18.61362863,201.48,201.43,26.0]
[1753148247462,0.65,201.51,201.44,18.61362863]
[1753148247656,18.61362863,201.5,201.44,18.61362863]
[1753148247856,0.65,201.51,201.42,18.61362863]
[1753148248062,45.44210139,201.53,201.46,44.61362863]
[1753148248063,18.71362863,201.53,201.46,44.61362863]
[1753148248265,0.1,201.53,201.5,18.61362863]
[1753148248452,0.1,201.53,201.51,4.96253287]
[1753148248653,0.1,201.53,201.51,23.5761615]
[1753148248856,0.1,201.53,201.51,4.96253287]
[1753148249263,0.1,201.53,201.49,26.0]
[1753148249463,0.75,201.53,201.49,30.96299724]
[1753148249650,0.65,201.52,201.47,18.61362863]
[1753148249850,0.1,201.53,201.51,18.61362863]
[1753148250054,0.1,201.53,201.52,18.61362863]
[1753148250467,1e-08,201.53,201.52,23.57591525]
[1753148251351,1e-08,201.53,201.48,4.96327178]
[1753148251564,1e-08,201.53,201.52,18.61362863]
[1753148252555,1e-08,201.53,201.52,23.57591525]
[1753148252957,1e-08,201.53,201.52,4.96228662]
[1753148253157,1e-08,201.53,201.52,23.57591525]
[1753148253583,22.0617063,201.66,201.55,26.0]
[1753148253755,22.0617063,201.66,201.61,18.61362863]
[1753148253957,22.0617063,201.66,201.59,26.0]
[1753148254256,40.67533493,201.66,201.59,44.61362863]
[1753148254455,40.67533493,201.66,201.49,10.0]
[1753148254456,18.61362863,201.6,201.5,0.65]
[1753148254756,35.3983126,201.63,201.53,26.0]
[1753148254967,16.78468397,201.63,201.57,18.61362863]
[1753148255177,22.0617063,201.66,201.6,18.61362863]
[1753148255380,22.0617063,201.66,201.62,18.61362863]
[1753148255586,0.65,201.65,201.6,18.61362863]
[1753148255877,22.0617063,201.66,201.62,18.61362863]
[1753148256078,22.0617063,201.66,201.61,18.61362863]
[1753148256381,16.78468397,201.62,201.56,23.57483787]
[1753148256583,16.78468397,201.62,201.56,18.61362863]
[1753148256878,16.78468397,201.57,201.51,18.61362863]
[1753148257179,17.43468397,201.58,201.46,0.65]
[1753148257384,36.0483126,201.58,201.51,18.61362863]
[1753148257675,36.0483126,201.58,201.52,18.61362863]
[1753148257994,0.65,201.58,201.46,0.65]
[1753148258169,19.26362863,201.58,201.51,18.61362863]
[1753148258369,0.65,201.58,201.52,23.57567927]
[1753148258865,16.78468397,201.57,201.51,18.61362863]
[1753148259386,0.65,201.58,201.54,18.61362863]
[1753148259581,0.65,201.58,201.53,18.61362863]
[1753148260087,16.78468397,201.61,201.5,43.36950952]
[1753148260294,0.69,201.62,201.56,18.61362863]
[1753148260584,18.61362863,201.6,201.53,26.0]
[1753148260784,16.78468397,201.6,201.54,44.61362863]
[1753148261158,35.3983126,201.6,201.54,26.0]
[1753148261568,12.39618622,201.68,201.54,26.0]
[1753148261569,0.69,201.65,201.58,18.61362863]
[1753148261878,19.30362863,201.65,201.57,26.0]
[1753148262074,40.73533493,201.66,201.59,18.61362863]
[1753148262418,18.61362863,201.63,201.49,0.65]
[1753148262695,18.61362863,201.58,201.52,18.61362863]
[1753148262871,19.30362863,201.61,201.54,18.61362863]
[1753148263069,35.3983126,201.6,201.53,18.61362863]
[1753148263285,18.61362863,201.59,201.47,0.65]
[1753148263499,18.61362863,201.56,201.46,17.3731758]
[1753148263679,18.61362863,201.5,201.43,18.61362863]
[1753148263880,0.69,201.51,201.43,4.96450379]
[1753148264187,16.78468397,201.55,201.42,17.4066017]
[1753148264392,18.61362863,201.5,201.44,23.57784632]
[1753148264578,18.61362863,201.48,201.42,0.03]
[1753148264777,18.61362863,201.44,201.42,0.03]
[1753148265094,19.30362863,201.47,201.42,4.99473647]
[1753148265398,18.61362863,201.46,201.42,0.03]
[1753148265575,18.61362863,201.46,201.42,4.99462968]
[1753148265576,19.30362863,201.46,201.42,4.99462968]
[1753148265892,21.74754936,201.5,201.42,0.03]
[1753148265893,35.3983126,201.43,201.42,0.03]
[1753148266392,16.78468397,201.42,201.37,0.03]
[1753148266569,35.3983126,201.38,201.37,0.03]
[1753148266773,16.78468397,201.37,201.33,0.03]
[1753148266972,0.69,201.37,201.33,0.03]
[1753148267176,18.61362863,201.35,201.33,0.03]
[1753148267469,19.30362863,201.36,201.33,0.03]
[1753148267671,0.69,201.36,201.33,0.03]
[1753148267896,16.78468397,201.39,201.33,0.03]
[1753148268071,18.61362863,201.36,201.33,0.03]
[1753148268275,19.30362863,201.35,201.33,0.03]
[1753148268591,0.69,201.35,201.33,0.03]
[1753148268793,0.69,201.4,201.34,18.61362863]
[1753148268977,16.78468397,201.43,201.37,18.61362863]
[1753148269172,35.3983126,201.43,201.37,18.61362863]
[1753148269378,16.78468397,201.41,201.33,44.64362863]
[1753148269577,18.61362863,201.4,201.33,44.64362863]
[1753148269788,10.0,201.53,201.33,44.64362863]
[1753148269789,16.78468397,201.48,201.39,18.61362863]
[1753148269987,0.69,201.46,201.41,18.61362863]
[1753148270188,0.69,201.46,201.4,26.0]
[1753148270394,0.69,201.47,201.42,18.61362863]
[1753148270574,0.69,201.46,201.43,4.96450379]
[1753148270776,0.69,201.5,201.45,18.61362863]
[1753148270992,16.78468397,201.53,201.47,18.61362863]
[1753148270993,40.32,201.53,201.47,18.61362863]
[1753148271191,40.32,201.53,201.48,18.61362863]
[1753148271396,0.69,201.59,201.49,0.71]
[1753148271697,18.61362863,201.56,201.5,18.61362863]
[1753148271903,19.30362863,201.57,201.51,18.61362863]
[1753148272088,0.69,201.57,201.46,26.71]
[1753148272283,0.69,201.57,201.52,18.61362863]
[1753148272488,19.30362863,201.57,201.51,23.57615247]
[1753148272682,19.30362863,201.57,201.45,12.40945262]
[1753148272683,18.61362863,201.53,201.47,4.96351814]
[1753148272994,18.61362863,201.51,201.46,4.96375568]
[1753148273187,18.61362863,201.48,201.41,12.41188924]
[1753148273397,16.78468397,201.49,201.44,26.0]
[1753148273606,0.69,201.57,201.51,26.0]
[1753148273982,0.69,201.57,201.53,18.61362863]
[1753148274182,19.30362863,201.57,201.5,18.61362863]
[1753148274492,18.61362863,201.54,201.49,4.96302546]
[1753148274808,0.69,201.53,201.49,4.96302546]
[1753148275118,0.69,201.52,201.49,4.96302546]
[1753148275412,0.69,201.52,201.47,49.57690632]
[1753148275612,0.69,201.52,201.48,18.61362863]
[1753148276108,16.78468397,201.5,201.44,18.61362863]
[1753148276287,0.69,201.49,201.42,18.61362863]
[1753148276477,0.69,201.49,201.45,18.61362863]
[1753148276685,16.78468397,201.51,201.44,4.96425734]
[1753148276986,45.26158287,201.55,201.4,0.71]
[1753148276987,18.61362863,201.46,201.4,18.61362863]
[1753148277192,0.69,201.45,201.39,12.83276082]